bitfinex-derivatives/quotes_SOLF0:USTF0_20250623
["timestamp","ask_amount","ask_price","bid_price","bid_amount"]
[1750657001738,5.88824368,133.48,133.44,7.4917]
[1750657001930,43.28824368,133.48,133.44,7.4917]
[1750657003036,7.4904,133.47,133.44,7.4917]
[1750657003238,43.28824368,133.48,133.41,4.7462]
[1750657003441,43.28824368,133.48,133.41,10.63444368]
[1750657003633,43.28824368,133.48,133.41,8.23204368]
[1750657003829,43.28824368,133.48,133.42,7.4927]
[1750657004034,50.53694368,133.48,133.42,7.4927]
[1750657005140,7.4911,133.46,133.42,7.4927]
[1750657006334,50.53694368,133.48,133.42,7.4927]
[1750657006837,7.4909,133.46,133.42,7.4927]
[1750657007435,7.4904,133.47,133.42,7.4927]
[1750657007641,50.53694368,133.48,133.42,7.4927]
[1750657008044,7.4909,133.46,133.43,7.4921]
[1750657012544,50.53694368,133.48,133.42,7.4926]
[1750657012744,5.88824368,133.46,133.42,7.4926]
[1750657013649,7.4915,133.45,133.42,7.4926]
[1750657015851,44.9115,133.45,133.42,7.4926]
[1750657017759,44.9114,133.45,133.42,7.4928]
[1750657021456,37.42,133.45,133.42,7.4928]
[1750657021955,37.42,133.45,133.41,7.4931]
[1750657022157,5.88824368,133.44,133.38,8.28654368]
[1750657022558,13.38024368,133.44,133.4,7.4934]
[1750657022854,5.88824368,133.42,133.37,39.714]
[1750657023152,5.88824368,133.42,133.39,7.4943]
[1750657023153,50.80134368,133.42,133.39,7.4943]
[1750657024758,7.4934,133.41,133.38,7.4948]
[1750657025351,37.42,133.42,133.37,5.88824368]
[1750657025851,37.42,133.42,133.4,7.4936]
[1750657028861,37.42,133.42,133.41,7.4934]
[1750657030064,37.42,133.42,133.4,7.4937]
[1750657032364,37.42,133.42,133.4,7.4939]
[1750657032558,37.42,133.42,133.39,5.88824368]
[1750657033163,37.42,133.42,133.41,7.4934]
[1750657033365,50.81964368,133.45,133.39,5.88824368]
[1750657034371,50.81964368,133.45,133.41,7.493]
[1750657037369,7.4918,133.44,133.41,7.493]
[1750657038967,7.4923,133.43,133.41,7.493]
[1750657040270,43.32824368,133.45,133.39,5.88824368]
[1750657040474,37.44,133.45,133.41,5.88824368]
[1750657040777,57.90664368,133.48,133.41,5.88824368]
[1750657041572,57.90664368,133.48,133.44,7.4913]
[1750657041774,7.4901,133.47,133.44,7.4913]
[1750657042171,50.41694368,133.48,133.43,7.4922]
[1750657043375,7.4908,133.46,133.43,7.4922]
[1750657045069,7.4902,133.47,133.44,7.4916]
[1750657045469,50.41694368,133.48,133.44,7.4916]
[1750657045771,7.4904,133.47,133.44,7.4916]
[1750657049178,37.28,133.48,133.43,5.88824368]
[1750657050077,37.28,133.48,133.46,7.4902]
[1750657050478,37.28,133.48,133.43,5.88824368]
[1750657051080,44.7695,133.48,133.45,7.4908]
[1750657051669,7.4901,133.47,133.44,7.4915]
[1750657052272,44.7697,133.48,133.45,7.491]
[1750657054981,7.4901,133.47,133.44,7.4912]
[1750657058684,7.4901,133.47,133.43,5.88824368]
[1750657059079,7.4901,133.47,133.44,7.4913]
[1750657061380,7.4901,133.47,133.45,7.491]
[1750657062888,43.16824368,133.48,133.43,5.88824368]
[1750657063289,43.16824368,133.48,133.44,7.4916]
[1750657063290,7.4903,133.47,133.44,7.4916]
[1750657064088,7.4907,133.46,133.43,13.38024368]
[1750657065185,7.4907,133.46,133.44,7.4917]
[1750657065488,7.4902,133.47,133.44,7.4917]
[1750657067190,7.4902,133.47,133.45,7.4911]
[1750657068388,50.65794368,133.48,133.45,7.4911]
[1750657068586,44.7697,133.48,133.45,7.4911]
[1750657068789,37.28,133.48,133.43,5.88824368]
[1750657068990,37.28,133.48,133.45,5.88824368]
[1750657069991,37.28,133.48,133.47,7.49]
[1750657070189,8.41919539,133.5,133.47,7.49]
[1750657070392,7.4886,133.5,133.47,7.49]
[1750657071394,684.28,133.51,133.45,5.88824368]
[1750657071595,8.41967633,133.5,133.45,5.88824368]
[1750657071794,37.26,133.51,133.45,5.88824368]
[1750657072090,8.41751477,133.5,133.45,8.34864368]
[1750657072284,37.26,133.51,133.45,8.34864368]
[1750657072489,8.41753473,133.5,133.45,8.34864368]
[1750657072796,37.26,133.51,133.49,7.4889]
[1750657072996,8.41722706,133.5,133.45,8.34864368]
[1750657073196,37.26,133.51,133.45,8.34864368]
[1750657073396,8.41660674,133.5,133.45,8.34864368]
[1750657073691,44.7477,133.51,133.48,7.4891]
[1750657073895,8.41660674,133.5,133.48,7.4891]
[1750657074091,42.90492505,133.51,133.48,7.4891]
[1750657074296,8.41909424,133.5,133.48,7.4891]
[1750657074598,42.90492505,133.51,133.48,7.4891]
[1750657074793,8.41909424,133.5,133.48,7.4891]
[1750657075098,50.39282505,133.51,133.48,7.4891]
[1750657075293,8.41909424,133.5,133.48,7.4891]
[1750657075599,44.7479,133.51,133.48,7.4891]
[1750657075798,8.42132326,133.5,133.48,7.4891]
[1750657075998,44.7479,133.51,133.48,7.4891]
[1750657076198,8.42073303,133.5,133.48,7.4891]
[1750657076399,44.7479,133.51,133.48,7.4891]
[1750657076596,8.41755224,133.5,133.48,7.4891]
[1750657076899,44.7479,133.51,133.48,7.4891]
[1750657077100,8.41754889,133.5,133.48,7.4891]
[1750657077300,44.7479,133.51,133.48,7.4891]
[1750657077500,8.4211338,133.5,133.48,7.4891]
[1750657077699,44.7479,133.51,133.48,7.4891]
[1750657077901,8.4211338,133.5,133.48,7.4891]
[1750657078202,44.7479,133.51,133.48,7.4891]
[1750657079907,37.26,133.51,133.47,5.88824368]
[1750657080904,2.4514,133.53,133.47,5.88824368]
[1750657081109,50.14268683,133.57,133.51,5.88824368]
[1750657081403,8.41406425,133.56,133.54,7.4858]
[1750657081705,8.41406425,133.56,133.51,5.88824368]
[1750657081706,42.88057766,133.57,133.51,5.88824368]
[1750657081910,37.26,133.57,133.51,5.88824368]
[1750657082404,37.26,133.57,133.54,7.4856]
[1750657085615,44.7444,133.57,133.54,7.4856]
[1750657088709,44.7444,133.57,133.53,13.37464368]
[1750657088911,7.4854,133.56,133.53,7.4864]
[1750657089814,44.7446,133.57,133.54,7.4858]
[1750657092612,37.26,133.57,133.53,5.88824368]
[1750657092921,37.24,133.6,133.55,5.88824368]
[1750657093421,44.7229,133.6,133.57,7.4841]
[1750657094516,37.24,133.6,133.55,5.88824368]
[1750657095729,44.7228,133.6,133.57,7.4841]
[1750657096923,37.24,133.6,133.57,7.4841]
[1750657097724,44.7227,133.6,133.57,7.4841]
[1750657098624,180.5,133.63,133.57,5.88824368]
[1750657099721,7.4816,133.62,133.59,7.4829]
[1750657100415,44.7012,133.63,133.6,7.4826]
[1750657101427,37.22,133.63,133.59,5.88824368]
[1750657101626,37.22,133.63,133.58,5.88824368]
[1750657102327,180.48,133.63,133.58,5.88824368]
[1750657102833,7.4817,133.62,133.59,7.4832]
[1750657103325,180.48,133.63,133.59,7.4832]
[1750657103721,7.4819,133.62,133.59,7.4832]
[1750657104526,186.36824368,133.63,133.49,5.88824368]
[1750657104726,186.36824368,133.63,133.56,5.88824368]
[1750657105322,37.22,133.63,133.58,5.88824368]
[1750657105518,37.22,133.63,133.6,5.88824368]
[1750657106233,37.22,133.63,133.61,7.4818]
[1750657107117,37.22,133.63,133.62,7.4816]
[1750657107318,44.6795,133.66,133.62,5.88824368]
[1750657108120,44.6795,133.66,133.63,7.4807]
[1750657109130,37.2,133.66,133.64,7.4804]
[1750657109330,37.2,133.66,133.62,5.88824368]
[1750657109631,37.2,133.66,133.64,5.88824368]
[1750657110728,37.2,133.66,133.64,13.36844368]
[1750657112127,37.2,133.66,133.64,5.88824368]
[1750657112728,37.2,133.66,133.64,13.36834368]
[1750657112930,7.4786,133.68,133.64,5.88824368]
[1750657113434,194.8759,133.69,133.66,7.4793]
[1750657113735,194.8759,133.69,133.64,5.88824368]
[1750657114028,39.4894,133.69,133.66,5.88824368]
[1750657114229,39.4894,133.69,133.67,5.88824368]
[1750657115833,39.4894,133.69,133.67,13.36694368]
[1750657117136,39.4894,133.69,133.67,5.88824368]
[1750657118024,39.4894,133.69,133.65,5.88824368]
[1750657118634,46.9674,133.69,133.65,13.36774368]
[1750657119133,7.4783,133.68,133.65,13.36774368]
[1750657119838,39.4894,133.69,133.64,5.88824368]
[1750657120335,2.4291,133.68,133.64,13.36834368]
[1750657121039,9.9076,133.68,133.65,7.4798]
[1750657121532,39.4894,133.69,133.64,5.88824368]
[1750657121836,7.4784,133.68,133.65,7.4797]
[1750657124743,46.9673,133.69,133.65,7.4797]
[1750657124939,46.9673,133.69,133.66,7.4792]
[1750657128644,46.9673,133.69,133.65,7.4796]
[1750657129041,37.18,133.72,133.68,5.88824368]
[1750657129247,37.18,133.72,133.71,5.88824368]
[1750657129445,37.18,133.72,133.7,5.88824368]
[1750657130049,44.6561,133.72,133.7,5.88824368]
[1750657132548,37.18,133.72,133.7,5.88824368]
[1750657135042,37.18,133.72,133.66,5.88824368]
[1750657135554,7.4767,133.71,133.67,7.4788]
[1750657135848,37.18,133.72,133.66,5.88824368]
[1750657136249,7.4774,133.7,133.66,13.36704368]
[1750657136450,37.2,133.69,133.66,13.36704368]
[1750657136854,44.6777,133.69,133.66,13.36704368]
[1750657137050,37.2,133.69,133.66,13.36704368]
[1750657138653,44.6778,133.69,133.66,13.36704368]
[1750657139854,7.4783,133.68,133.65,7.4798]
[1750657140151,7.4783,133.68,133.66,5.88824368]
[1750657140547,37.2,133.69,133.63,5.88824368]
[1750657140752,7.3961,133.68,133.63,5.88824368]
[1750657140959,14.8748,133.68,133.64,7.4801]
[1750657141555,7.3961,133.68,133.65,7.4799]
[1750657141755,37.2,133.69,133.65,5.88824368]
[1750657143452,37.2,133.69,133.67,7.4784]
[1750657146864,44.6777,133.69,133.66,7.4791]
[1750657147459,7.4783,133.68,133.65,13.36804368]
[1750657147655,7.4783,133.68,133.65,7.4798]
[1750657148157,5.91243185,133.67,133.61,5.88824368]
[1750657148357,37.2,133.66,133.61,5.88824368]
[1750657148765,7.4804,133.65,133.61,13.37014368]
[1750657149365,37.2,133.66,133.61,5.88824368]
[1750657149366,7.4805,133.64,133.61,5.88824368]
[1750657149866,7.4805,133.64,133.61,13.37004368]
[1750657150062,7.4802,133.65,133.61,13.37004368]
[1750657150267,7.4802,133.65,133.61,5.88824368]
[1750657150668,44.6796,133.66,133.62,7.4812]
[1750657150868,44.6796,133.66,133.61,5.88824368]
[1750657151271,37.2,133.66,133.61,5.88824368]
[1750657151471,37.2,133.66,133.65,5.88824368]
[1750657151864,37.2,133.66,133.65,13.36814368]
[1750657163672,37.16,133.69,133.66,7.4788]
[1750657165877,44.6379,133.69,133.66,7.4788]
[1750657166777,5.92538001,133.68,133.66,7.4788]
[1750657166979,44.6379,133.69,133.66,7.4788]
[1750657167177,5.92542771,133.68,133.66,7.4788]
[1750657167374,44.6379,133.69,133.66,7.4788]
[1750657167574,5.92530882,133.68,133.66,7.4788]
[1750657167874,44.6379,133.69,133.66,7.4788]
[1750657168168,5.92548281,133.68,133.66,7.4788]
[1750657168372,44.6379,133.69,133.66,7.4788]
[1750657168566,5.92536758,133.68,133.66,7.4788]
[1750657168766,37.16,133.69,133.66,7.4788]
[1750657169575,44.6379,133.69,133.66,7.4788]
[1750657170182,37.16,133.69,133.67,7.4788]
[1750657171777,37.16,133.69,133.66,7.4789]
[1750657173481,37.16,133.69,133.65,5.88824368]
[1750657173884,37.16,133.69,133.66,7.4789]
[1750657175483,37.16,133.69,133.67,7.4785]
[1750657176084,37.16,133.69,133.65,5.88824368]
[1750657176983,37.16,133.69,133.67,7.4785]
[1750657177682,44.6377,133.69,133.66,7.4791]
[1750657179181,44.6377,133.69,133.67,7.4788]
[1750657179388,5.93441021,133.68,133.67,7.4788]
[1750657179787,5.93441021,133.68,133.65,5.88824368]
[1750657180085,7.4783,133.68,133.65,5.88824368]
[1750657180280,37.16,133.69,133.65,5.88824368]
[1750657180487,44.638,133.69,133.65,5.88824368]
[1750657181586,7.4786,133.68,133.65,7.4796]
[1750657182091,44.638,133.69,133.64,5.88824368]
[1750657182593,44.638,133.69,133.66,7.479]
[1750657182996,37.16,133.69,133.64,5.88824368]
[1750657183290,37.16,133.69,133.66,7.4788]
[1750657183489,37.16,133.69,133.66,5.88824368]
[1750657184783,37.16,133.69,133.68,7.4782]
[1750657184988,5.93385358,133.69,133.68,13.36644368]
[1750657185189,39.6432,133.72,133.68,5.88824368]
[1750657185387,5.93272725,133.71,133.7,7.4766]
[1750657185883,39.6432,133.72,133.7,7.4766]
[1750657186589,37.16,133.72,133.71,7.4765]
[1750657186889,43.09025914,133.72,133.71,7.4765]
[1750657187689,37.16,133.72,133.71,7.4765]
[1750657188291,43.10206491,133.72,133.71,7.4765]
[1750657188495,43.10206491,133.72,133.7,13.36514368]
[1750657188694,37.16,133.72,133.7,13.36514368]
[1750657189596,44.636,133.72,133.68,5.88824368]
[1750657189998,37.16,133.72,133.68,5.88824368]
[1750657190499,5.93998757,133.71,133.68,5.88824368]
[1750657190799,37.16,133.72,133.68,5.88824368]
[1750657190999,5.93946937,133.71,133.68,5.88824368]
[1750657191199,37.16,133.72,133.68,5.88824368]
[1750657191403,5.93946937,133.71,133.68,5.88824368]
[1750657191600,37.16,133.72,133.68,5.88824368]
[1750657191806,5.93906035,133.71,133.68,5.88824368]
[1750657192003,37.16,133.72,133.68,5.88824368]
[1750657192303,5.93909141,133.71,133.68,5.88824368]
[1750657192499,37.16,133.72,133.68,5.88824368]
[1750657192705,5.93900942,133.71,133.68,5.88824368]
[1750657193001,37.16,133.72,133.68,5.88824368]
[1750657193202,5.94362077,133.71,133.68,5.88824368]
[1750657193399,37.16,133.72,133.68,5.88824368]
[1750657193605,5.94362077,133.71,133.68,5.88824368]
[1750657193807,7.4768,133.71,133.68,13.36644368]
[1750657195707,13.42455683,133.7,133.67,7.4786]
[1750657195909,7.4772,133.7,133.67,7.4786]
[1750657197311,37.16,133.72,133.67,7.4786]
[1750657197312,15.93801482,133.71,133.67,7.4786]
[1750657197611,5.94858882,133.7,133.67,7.4786]
[1750657197811,7.4767,133.71,133.68,7.4782]
[1750657198109,5.94876367,133.7,133.68,7.4782]
[1750657198299,7.4767,133.71,133.68,7.4782]
[1750657198503,5.94417947,133.7,133.68,7.4782]
[1750657198703,7.4767,133.71,133.68,7.4782]
[1750657198898,5.94425686,133.7,133.68,7.4782]
[1750657199102,7.4767,133.71,133.68,7.4782]
[1750657199300,37.16,133.72,133.67,7.4785]
[1750657199301,13.42145686,133.7,133.67,7.4785]
[1750657199611,7.4772,133.7,133.67,7.4785]
[1750657199811,5.94476117,133.69,133.66,13.36724368]
[1750657200013,37.14,133.69,133.66,13.36724368]
[1750657200706,37.14,133.69,133.67,7.4787]
[1750657201014,37.14,133.69,133.66,5.88824368]
[1750657201511,37.14,133.69,133.68,7.4782]
[1750657201713,43.08487798,133.69,133.68,13.36644368]
[1750657201912,37.14,133.69,133.68,13.36644368]
[1750657211924,45.59755093,133.72,133.69,7.4773]
[1750657212125,5.9365556,133.71,133.69,7.4773]
[1750657212326,37.14,133.72,133.7,7.4769]
[1750657212626,5.94107296,133.71,133.7,7.4769]
[1750657214424,5.94107296,133.71,133.7,11.23337165]
[1750657220833,5.94107296,133.71,133.69,11.23387165]
[1750657221032,37.14,133.72,133.69,11.23387165]
[1750657221225,5.94267464,133.71,133.69,3.75647165]
[1750657221532,37.14,133.72,133.7,7.4768]
[1750657221734,5.94289433,133.71,133.7,3.75647165]
[1750657222422,5.94289433,133.71,133.7,11.23357165]
[1750657223134,37.14,133.72,133.71,7.4765]
[1750657223333,43.08233902,133.72,133.71,11.23297165]
[1750657223630,37.14,133.72,133.71,3.75647165]
[1750657223833,43.08186379,133.72,133.71,3.75647165]
[1750657224029,43.08193031,133.72,133.71,3.75647165]
[1750657225235,43.08193031,133.72,133.71,11.23297165]
[1750657225436,2.483,133.75,133.71,3.75647165]
[1750657225730,2.483,133.75,133.66,4.9286]
[1750657225731,5.94167965,133.74,133.73,11.23187165]
[1750657225936,5.94167965,133.74,133.73,3.75647165]
[1750657226234,5.94167965,133.74,133.73,11.23187165]
[1750657229536,37.1,133.75,133.73,11.23187165]
[1750657229741,5.93734649,133.74,133.73,11.23187165]
[1750657230737,37.1,133.75,133.73,11.23187165]
[1750657232739,37.1,133.75,133.74,3.75647165]
[1750657232939,43.03365933,133.75,133.73,11.23187165]
[1750657233238,37.1,133.75,133.73,11.23187165]
[1750657236141,37.1,133.75,133.74,11.23137165]
[1750657240345,37.1,133.75,133.74,3.75647165]
[1750657241848,37.1,133.75,133.74,11.23137165]
[1750657248054,37.1,133.75,133.74,3.75647165]
[1750657248857,46.80506897,133.75,133.72,3.75647165]
[1750657249047,40.85647165,133.75,133.72,3.75647165]
[1750657249857,7.4752,133.74,133.72,3.75647165]
[1750657250660,7.4752,133.74,133.72,11.23237165]
[1750657252059,3.75647165,133.74,133.7,3.75647165]
[1750657252259,143.0,133.73,133.7,3.75647165]
[1750657252962,150.4758,133.73,133.7,11.23327165]
[1750657253364,143.0,133.73,133.72,3.75647165]
[1750657254866,143.0,133.73,133.72,11.23247165]
[1750657258269,44.5746,133.75,133.72,11.23247165]
[1750657260468,48.33107165,133.75,133.72,11.23247165]
[1750657261671,5.94778751,133.74,133.72,11.23247165]
[1750657261972,48.33107165,133.75,133.72,11.23247165]
[1750657262170,5.94778751,133.74,133.72,11.23247165]
[1750657262364,48.33107165,133.75,133.72,11.23247165]
[1750657262564,5.94797079,133.74,133.72,11.23247165]
[1750657262770,48.33107165,133.75,133.72,11.23247165]
[1750657262962,5.94885429,133.74,133.72,11.23247165]
[1750657263169,48.33107165,133.75,133.72,11.23247165]
[1750657263360,5.9490305,133.74,133.72,11.23247165]
[1750657263562,48.33107165,133.75,133.72,11.23247165]
[1750657263762,48.33107165,133.75,133.72,3.75647165]
[1750657263763,13.42512977,133.74,133.72,3.75647165]
[1750657263965,40.85647165,133.75,133.72,3.75647165]
[1750657264164,5.95041699,133.74,133.72,3.75647165]
[1750657264364,40.85647165,133.75,133.72,3.75647165]
[1750657264568,5.95041699,133.74,133.72,7.4759]
[1750657264774,48.33107165,133.75,133.72,7.4759]
[1750657264972,5.9515697,133.74,133.72,7.4759]
[1750657265169,48.33107165,133.75,133.72,7.4759]
[1750657265473,5.95171158,133.74,133.72,7.4759]
[1750657265664,5.95171158,133.73,133.72,7.4759]
[1750657266472,5.95171158,133.73,133.72,11.23237165]
[1750657267171,44.5746,133.75,133.72,11.23237165]
[1750657267476,5.95514746,133.74,133.72,11.23237165]
[1750657267671,44.5746,133.75,133.72,11.23237165]
[1750657267867,5.96042307,133.74,133.72,11.23237165]
[1750657268065,44.5746,133.75,133.72,11.23237165]
[1750657268268,5.96051838,133.74,133.72,11.23237165]
[1750657268470,44.5746,133.75,133.72,11.23237165]
[1750657268671,5.96109217,133.74,133.72,11.23237165]
[1750657268872,44.5746,133.75,133.72,11.23237165]
[1750657269075,5.96109217,133.74,133.72,11.23237165]
[1750657269373,5.96117914,133.73,133.72,11.23237165]
[1750657269569,5.96117914,133.73,133.71,7.4763]
[1750657269770,5.96272397,133.72,133.7,3.75647165]
[1750657270078,37.06,133.72,133.7,3.75647165]
[1750657270276,37.06,133.72,133.7,11.23337165]
[1750657270474,5.96216975,133.71,133.7,7.4769]
[1750657270680,5.96216975,133.71,133.69,3.75647165]
[1750657270978,5.96216975,133.7,133.66,94.4405471]
[1750657271275,37.06,133.72,133.71,7.4765]
[1750657271475,43.02060075,133.72,133.71,11.23297165]
[1750657272075,37.06,133.72,133.71,11.23297165]
[1750657274372,37.06,133.75,133.73,7.4752]
[1750657274568,5.95000704,133.74,133.73,7.4752]
[1750657276779,5.95000704,133.74,133.73,11.23167165]
[1750657278876,37.06,133.75,133.74,7.4749]
[1750657279678,43.01763693,133.75,133.74,7.4749]
[1750657279879,43.01764212,133.75,133.74,7.4749]
[1750657280583,37.06,133.75,133.74,7.4749]
[1750657282185,43.01646449,133.75,133.74,7.4749]
[1750657282485,37.06,133.75,133.74,11.23137165]
[1750657284578,37.06,133.75,133.73,11.23167165]
[1750657285684,44.5343,133.75,133.73,11.23167165]
[1750657285883,44.5343,133.75,133.72,11.23217165]
[1750657286087,5.96048797,133.74,133.72,11.23217165]
[1750657286279,44.5343,133.75,133.7,2.2797]
[1750657286280,40.81647165,133.75,133.71,3.75647165]
[1750657286487,9.71712023,133.74,133.71,11.23297165]
[1750657286784,5.96064858,133.73,133.71,11.23297165]
[1750657287088,3.75647165,133.74,133.71,11.23297165]
[1750657287293,5.96116239,133.73,133.71,11.23297165]
[1750657287483,7.4754,133.73,133.71,3.75647165]
[1750657291388,7.476,133.72,133.7,3.75647165]
[1750657291590,5.96170672,133.71,133.69,7.4775]
[1750657291786,48.25247165,133.72,133.66,91.9994471]
[1750657291787,48.25247165,133.72,133.68,3.75647165]
[1750657291986,17.19529269,133.71,133.67,7.4786]
[1750657292184,11.23347165,133.71,133.68,3.75647165]
[1750657292388,3.75647165,133.71,133.68,3.75647165]
[1750657292588,7.4772,133.7,133.68,3.75647165]
[1750657292791,11.23367165,133.7,133.67,11.23507165]
[1750657293698,37.02,133.72,133.64,37.02]
[1750657293699,17.17946474,133.69,133.66,11.23557165]
[1750657293899,48.25427165,133.69,133.66,11.23557165]
[1750657295195,37.02,133.69,133.67,7.4787]
[1750657295397,37.02,133.69,133.67,3.75647165]
[1750657295899,37.02,133.69,133.68,11.23467165]
[1750657298106,37.02,133.72,133.71,7.476]
[1750657299904,37.02,133.72,133.7,7.4769]
[1750657303107,37.02,133.72,133.71,7.4765]
[1750657303607,37.02,133.72,133.68,5.86801233]
[1750657304709,37.02,133.72,133.7,7.4769]
[1750657305907,44.4964,133.72,133.67,5.86801233]
[1750657306108,37.02,133.72,133.67,5.86801233]
[1750657306612,7.477,133.71,133.68,7.478]
[1750657307211,7.4773,133.7,133.67,13.34641233]
[1750657307405,7.4773,133.7,133.67,7.4784]
[1750657307612,37.02,133.69,133.64,121.25848637]
[1750657307815,37.02,133.69,133.64,90.1064987]
[1750657308707,7.4785,133.68,133.65,7.4795]
[1750657311714,7.4791,133.67,133.64,7.4802]
[1750657315717,5.86801233,133.68,133.63,7.4809]
[1750657316416,7.4792,133.67,133.64,7.4804]
[1750657317207,5.86801233,133.68,133.64,7.4804]
[1750657317413,13.34651233,133.68,133.65,7.4798]
[1750657319713,37.02,133.69,133.64,5.86801233]
[1750657321116,37.02,133.69,133.66,5.86801233]
[1750657322719,37.02,133.69,133.68,7.4782]
[1750657326924,37.02,133.69,133.67,7.4785]
[1750657327223,37.02,133.69,133.66,5.86801233]
[1750657327423,685.2352,133.72,133.7,7.4768]
[1750657327721,682.92,133.72,133.68,5.86801233]
[1750657328215,682.92,133.72,133.64,37.0]
[1750657328416,682.92,133.72,133.67,5.86801233]
[1750657328616,682.92,133.72,133.69,7.4772]
[1750657330020,682.92,133.72,133.67,5.86801233]
[1750657330624,36.98,133.72,133.67,5.86801233]
[1750657332018,44.4561,133.72,133.69,7.4773]
[1750657334926,7.4774,133.7,133.64,37.0]
[1750657335121,36.98,133.72,133.65,5.86801233]
[1750657335622,36.98,133.72,133.67,7.4785]
[1750657336128,5.92996019,133.71,133.67,7.4785]
[1750657336327,36.98,133.72,133.68,7.4781]
[1750657336627,5.92996019,133.71,133.68,7.4781]
[1750657336927,7.4769,133.71,133.67,7.4785]
[1750657337928,7.4772,133.7,133.67,7.4785]
[1750657345532,7.4777,133.69,133.66,7.479]
[1750657350441,7.4774,133.7,133.67,7.4788]
[1750657360150,13.34481233,133.71,133.68,7.4782]
[1750657360350,3.75827554,133.69,133.68,7.4782]
[1750657362149,3.75827554,133.69,133.67,7.4786]
[1750657365251,3.75827554,133.69,133.66,7.4791]
[1750657365557,11.23632326,133.69,133.66,7.4791]
[1750657366454,3.75862326,133.68,133.66,7.4791]
[1750657367859,11.23722326,133.68,133.65,7.4797]
[1750657368056,3.75862326,133.67,133.65,7.4797]
[1750657369158,3.75964593,133.67,133.65,7.4797]
[1750657369856,40.71964593,133.66,133.59,13.76314964]
[1750657370062,3.76327489,133.6,133.56,3.76327489]
[1750657370262,3.76327489,133.59,133.55,3.76327489]
[1750657370563,3.76362348,133.6,133.58,7.4838]
[1750657371261,3.76362348,133.6,133.57,44.4442]
[1750657371455,3.76362348,133.6,133.57,36.96]
[1750657372366,13.36292805,133.61,133.57,36.96]
[1750657372761,13.36292805,133.61,133.58,7.4838]
[1750657373770,5.88062805,133.61,133.59,7.4831]
[1750657374963,44.4411,133.63,133.57,36.96]
[1750657375166,42.84062805,133.66,133.6,5.88062805]
[1750657375371,42.84062805,133.66,133.6,42.84062805]
[1750657375566,42.84062805,133.66,133.63,7.4807]
[1750657376870,42.84062805,133.66,133.64,7.4802]
[1750657377073,5.88062805,133.68,133.62,5.88062805]
[1750657377461,5.88062805,133.68,133.66,7.4793]
[1750657377972,5.88062805,133.68,133.65,7.4796]
[1750657379374,44.4179,133.69,133.65,7.4796]
[1750657379867,7.4784,133.68,133.65,7.4796]
[1750657381074,44.4179,133.69,133.66,7.4791]
[1750657381274,5.88062805,133.68,133.63,36.94]
[1750657381474,5.88062805,133.66,133.61,4.766]
[1750657381776,5.88062805,133.64,133.59,36.92]
[1750657381982,7.4811,133.63,133.59,36.92]
[1750657383776,7.4811,133.63,133.6,7.4827]
[1750657386275,7.4811,133.63,133.59,44.4029]
[1750657387479,7.4811,133.63,133.59,7.4829]
[1750657388277,7.4817,133.62,133.59,7.4829]
[1750657390479,13.36232805,133.62,133.58,7.4836]
[1750657390979,7.4823,133.61,133.58,7.4836]
[1750657394082,7.4823,133.61,133.57,45.32542805]
[1750657394083,13.36242805,133.62,133.59,7.4831]
[1750657394883,5.88062805,133.62,133.59,7.4831]
[1750657395583,5.88062805,133.62,133.6,7.4827]
[1750657397484,7.4813,133.63,133.6,7.4827]
[1750657397985,7.4813,133.63,133.57,45.32542805]
[1750657397986,7.4813,133.63,133.59,7.483]
[1750657402488,7.4816,133.62,133.59,7.483]
[1750657409993,5.88062805,133.62,133.56,4.966]
[1750657410187,5.88062805,133.62,133.56,2.4857]
[1750657410387,5.88062805,133.62,133.55,124.08454399]
[1750657411893,7.4827,133.6,133.57,7.4843]
[1750657412091,5.88062805,133.62,133.57,7.4843]
[1750657412993,7.4825,133.61,133.57,7.4843]
[1750657417494,5.88062805,133.62,133.55,124.08454399]